Cogmind - Beta 10.2 *** ADVENTURER MODE // 2021.11.28 @ 13:28:13 Player: zinchalk Result: Destroyed by S-10 Pest with Light Assault Rifle Performance ------------- Evolutions (0) 0 Regions Visited (1) 200 Robots Destroyed (28) 140 Value Destroyed (542) 542 Prototype IDs (4) 80 Alien Tech Used (0) 0 Bonus (0) 0 TOTAL SCORE: 962 Bonus ------- None Cogmind --------- Core Integrity 0/250 Matter 178/300 Energy 100/100 System Corruption 0% Temperature Cool (0) Movement Core (550) Ox10 Location -10/Materials Parts ------- > --- POWER (1) -------- (None) > --- PROPULSION (2) --- (None) > --- UTILITY (2) ------ High-capacity Storage Unit Signal Interpreter > --- WEAPON (2) ------- (None) > --- INVENTORY (12) --- (None) Peak State ------------ > --- POWER ------------ Ion Engine > --- PROPULSION ------- Wheel Wheel > --- UTILITY ---------- Improved Terrain Scanner Seismic Analyzer > --- WEAPON ----------- Small Laser Assault Rifle > --- INVENTORY -------- Medium Laser [Rating: 8] Favorites ----------- Power Light Ion Engine Engine Light Ion Engine Propulsion Wheel Leg Aluminum Leg Wheel Wheel Flight Unit Flight Unit Utility High-capacity Storage Unit Device Terrain Scanner Storage High-capacity Storage Unit Processor Seismic Analyzer Weapon Assault Rifle Energy Gun Small Laser Energy Cannon Beam Cannon Ballistic Gun Assault Rifle Launcher Grenade Launcher Build | -11 -10 ------- Run | Scr Mat Slots Evolved . | . . Power . | . . Propulsion . | . . Utility . | . . Weapon . | . . Parts Attached 43 | 8 35 Power 10 | 2 8 Engine 10 | 2 8 Core . | . . Reactor . | . . Propulsion 15 | 2 13 Treads . | . . Leg 2 | . 2 Wheel 11 | 2 9 Hover . | . . Flight 2 | . 2 Utility 6 | 2 4 Device 3 | 1 2 Storage 1 | . 1 Processor 2 | 1 1 Hackware . | . . Protection . | . . Artifact . | . . Weapon 12 | 2 10 Energy Gun 6 | 1 5 Energy Cannon 1 | . 1 Ballistic Gun 4 | 1 3 Ballistic Cannon . | . . Launcher 1 | . 1 Special Weapon . | . . Impact Weapon . | . . Slashing Weapon . | . . Piercing Weapon . | . . Special Melee Weapon . | . . Unidentified Prototypes . | . . Parts Lost 9 | . 9 Power 1 | . 1 Propulsion 3 | . 3 Utility 1 | . 1 Weapon 4 | . 4 Highest Loss Streak 5 | . 5 Average Slot Usage (%) 95 | . 95 Engine 13 | . 13 Wheel 22 | . 22 Flight 3 | . 3 Device 7 | . 7 Storage 8 | . 8 Processor 11 | . 11 Energy Gun 6 | . 6 Energy Cannon 6 | . 6 Ballistic Gun 7 | . 7 Launcher 6 | . 6 Naked Turns . | . . Heaviest Build 42 | 9 42 Greatest Support 20 | 20 20 Greatest Overweight (x) 11 | . 11 Average Overweight (x) . | . 1 Largest Inventory Capacity 12 | 4 12 Average Capacity 8 | 4 8 Most Carried 4 | 4 3 Average Carried 1 | 1 1 Final Capacity 12 | 4 12 Final Carried 1 | 1 . Class Distribution -------------------- 66% | Mutant 33% | Scavenger-Mutant Dominant Class ---------------- Mutant | -10/Materials Resources | -11 -10 ----------- Run | Scr Mat Matter Collected 719 | 282 437 Remotely . | . . Salvage Created 657 | 87 570 Parts 64 | 12 52 Haulers Intercepted . | . . Recyclers Shooed . | . . Parts Field Recycled . | . . Retrieved Matter . | . . Parts Self-Destructed . | . . Prevented . | . . Kills | -11 -10 ------- Run | Scr Mat Combat Hostiles Destroyed 17 | 1 16 Guns 13 | 1 12 Cannons 2 | . 2 AOE 2 | . 2 Classes Destroyed 7 | 2 5 Worker 2 | . 2 Builder 2 | . 2 Tunneler 4 | 3 1 Recycler 1 | . 1 Watcher 2 | . 2 Swarmer 6 | . 6 Grunt 11 | 1 10 Best Kill Streak 5 | 2 5 Combat Bots Only 3 | 1 3 Max Kills in Single Turn 2 | 1 2 Gunslinging 1 | . 1 Exploded 1 | . 1 Melee . | . . Uniques/NPCs Destroyed . | . . Combat | -11 -10 -------- Run | Scr Mat Damage Taken 914 | 35 879 Core 256 | 9 247 Absorbed by Shields . | . . Core Remaining (%) 96 | 96 . Volleys Fired 82 | 10 72 Largest 2 | 2 2 Hottest 90 | 60 90 Shots Fired 142 | 20 122 Gun 119 | 20 99 Cannon 15 | . 15 Launcher 8 | . 8 Special . | . . Kinetic 76 | 10 66 Thermal 58 | 10 48 Explosive 8 | . 8 Electromagnetic . | . . Robot Hit Streak 24 | 7 24 Robot Miss Streak 4 | 1 4 Penetration Max . | . . Secondary Targets 2 | . 2 Max Gunslinging Chain 1 | . 1 Shots Hit Robots 98 | 14 84 Core Hits 42 | 5 37 Critical Hits . | . . Critical Kills . | . . Critical Parts Destroyed . | . . Melee Attacks . | . . Impact . | . . Slashing . | . . Piercing . | . . Sneak Attacks . | . . Combat Hostiles . | . . Follow-up Attacks . | . . Damage Inflicted 1426 | 128 1298 Guns 782 | 128 654 Cannons 140 | . 140 Explosions 494 | . 494 Melee . | . . Ramming 10 | . 10 Kinetic 479 | 46 433 Thermal 443 | 82 361 Explosive 494 | . 494 Electromagnetic . | . . Impact . | . . Slashing . | . . Piercing . | . . Highest Corruption . | . . Average Corruption . | . . Corruption Purged . | . . Overload Shots . | . . Overflow Damage 46 | . 46 Projectiles . | . . Explosions 46 | . 46 Melee . | . . Knockbacks . | . . Impact . | . . Kinetic . | . . Secondary . | . . Self-Inflicted Damage 114 | . 114 Shots 5 | . 5 Rammed 3 | . 3 Targets Rammed 4 | . 4 Kicked 1 | . 1 Crushed . | . . Highest Temperature 240 | 12 240 Average Temperature 52 | 10 54 Received Heat Transfer 372 | 24 348 Siege Activations . | . . Robots Corrupted . | . . Combat Hostiles . | . . Parts Fried . | . . Impact Corruptions . | . . Robots Melted . | . . Combat Hostiles . | . . Parts Melted 5 | . 5 Heat Transferred 1054 | 175 879 Parts Sabotaged . | . . Parts Stolen . | . . Parts Stripped . | . . Power Chain Reactions . | . . Missiles Intercepted . | . . Alert | -11 -10 ------- Run | Scr Mat Peak Influence 324 | 35 324 Initial 19 | . 19 Average 103 | 13 119 Maximum Alert Level 1 | . 1 Low Security (%) 87 | 100 85 Level 1 12 | . 14 Level 2 . | . . Level 3 . | . . Level 4 . | . . Level 5 . | . . High Security . | . . Max Security . | . . Squads Dispatched 4 | . 4 Investigation 4 | . 4 Extermination . | . . Reinforcement . | . . Assault . | . . Garrison . | . . Intercept . | . . Construction Impeded . | . . Haulers Reinforced . | . . Stealth | -11 -10 --------- Run | Scr Mat Distress Signals . | . . Communications Jammed . | . . Distress Signals . | . . Times Spotted 26 | 1 25 Peak Tracking Total 4 | 1 4 Tactical Retreats 1 | . 1 Traps | -11 -10 ------- Run | Scr Mat Traps Triggered . | . . Indirectly . | . . Trap Hack Attempts . | . . Triggered . | . . Disarmed . | . . Reprogrammed 1 | . 1 Reused . | . . Traps Extracted . | . . Installed . | . . Triggered . | . . Machines | -11 -10 ---------- Run | Scr Mat Machines Disabled 3 | . 3 Max in Single Turn 1 | . 1 Machines Sabotaged . | . . Garrisons Compromised . | . . Overloaded Fab Kills . | . . Fab Network Shutdowns . | . . Hacking | -11 -10 --------- Run | Scr Mat Machines Accessed 7 | . 7 Terminals 5 | . 5 Fabricators . | . . Repair Stations 1 | . 1 Recycling Units 1 | . 1 Scanalyzers . | . . Garrison Access . | . . Total Hacks 34 | . 34 Successful 28 | . 28 Failed 6 | . 6 Catastrophic . | . . Database Lockouts . | . . Manual . | . . Terminals 23 | . 23 Fabricators . | . . Repair Stations 10 | . 10 Recycling Units 1 | . 1 Scanalyzers . | . . Garrison Access . | . . Terminal Hacks 17 | . 17 Record 4 | . 4 Prototype ID Bank 3 | . 3 Emergency Access Points 2 | . 2 Terminal Index 1 | . 1 Alert Level 1 | . 1 Locate Traps 2 | . 2 Reprogram Traps 1 | . 1 Dispatch Records 1 | . 1 Patrol Status 1 | . 1 Recall Investigation 1 | . 1 Fabricator Hacks . | . . Repair Station Hacks 10 | . 10 Scan Component 5 | . 5 Repair 5 | . 5 Recycling Unit Hacks 1 | . 1 Retrieve Components 1 | . 1 Scanalyzer . | . . Garrison Access Hacks . | . . Unauthorized Hacks . | . . Terminals . | . . Fabricators . | . . Repair Stations . | . . Recycling Units . | . . Scanalyzers . | . . Garrison Access . | . . Data Cores Recovered . | . . Used . | . . Hacking Detections 7 | . 7 Full Trace Events 5 | . 5 Feedback Events . | . . Feedback Blocked . | . . Robot Schematics Acquired . | . . Robots Built . | . . Matter . | . . Time . | . . Total Robot Build Rating . | . . Part Schematics Acquired . | . . Parts Built . | . . Matter . | . . Time . | . . Total Part Build Rating . | . . Parts Repaired 5 | . 5 Time 136 | . 136 Parts Recycled . | . . Recycled Matter . | . . Retrieved Matter . | . . Retrieved Components 10 | . 10 Parts Scanalyzed . | . . Part Schematics Acquired . | . . Parts Damaged . | . . Bothacking | -11 -10 ------------ Run | Scr Mat Used RIF Installer . | . . Robots Hacked . | . . Non-combat . | . . Combat . | . . Robot Hacks Applied . | . . Relay Couplers Released . | . . Robots Rewired . | . . Allies Hacked . | . . Hacks Repelled . | . . Allies | -11 -10 -------- Run | Scr Mat Total Allies . | . . Largest Group . | . . Highest-Rated Group . | . . Highest-Rated Ally . | . . Total Orders . | . . Ally Attacks . | . . Total Damage . | . . Kills . | . . Allies Corrupted . | . . Allies Melted . | . . Intel | -11 -10 ------- Run | Scr Mat Robot Analysis Total . | . . Derelict Logs Recovered . | . . Drone Launches . | . . Drone Recoveries . | . . Exploration | -11 -10 ------------- Run | Scr Mat Turns Passed 1435 | 209 1226 Spaces Moved 1251 | 214 1037 Core 46 | 43 3 Treads . | . . Legs 19 | . 19 Wheels 1035 | 171 864 Hover . | . . Flight 151 | . 151 Fastest Speed 37 | 50 37 Average Speed 87 | 73 89 Slowest Speed 600 | 80 600 Overloaded Moves . | . . Propulsion Burnouts . | . . Robots Hopped 6 | . 6 Cave-ins Triggered . | . . Exploration Rate (%) 43 | 6 80 Regions Visited 1 Branch Regions . Pre-discovered Areas . | . . Known Exits Taken . | . . Unknown Exits Taken 1 | 1 . Scrap Searched . | . . Spaces Dug . | . . Terrain Destroyed 81 | . 81 Melee . | . . Projectile . | . . AOE 81 | . 81 Terrain Rammed . | . . Walls Destroyed . | . . Machines Disabled . | . . Actions | -11 -10 --------- Run | Scr Mat Total 1471 | 245 1226 Wait 1 | . 1 Move 1238 | 213 1025 Hop 6 | . 6 Pick Up 55 | 11 44 Fast Attach 1 | . 1 Attach 39 | 7 32 Detach 2 | . 2 Swap 3 | 1 2 Drop 40 | 3 37 Fire 82 | 10 72 Melee . | . . Ram 1 | . 1 Kick 3 | . 3 Crush . | . . Escape Stasis . | . . Rewire . | . . Trap . | . . Miscellaneous . | . . Route ------- -11/Scrapyard -10/Materials (discovered 4 exits: [*Mat x2] / *Min x2) History --------- Turn | Location | Event 2 | -11/Scrapyard | Met Revision 17 90 | -11/Scrapyard | Discovered new exit (range 8) 210 | -11/Scrapyard | Entered Materials 229 | -10/Materials | Repaired Ion Engine 229 | -10/Materials | Repaired Imp. Terrain Scanner 255 | -10/Materials | Repaired Sml. Laser 303 | -10/Materials | Build established: Mutant 357 | -10/Materials | Repaired Med. Laser 383 | -10/Materials | Repaired Wheel 465 | -10/Materials | Lost 4 parts (1n1u2w) 586 | -10/Materials | Core integrity fell below 50% 610 | -10/Materials | Discovered new exit (range 9) 799 | -10/Materials | Build established: Scavenger-Mutant 921 | -10/Materials | Discovered new exit (range 16) 939 | -10/Materials | Identified exit to Mines 1074 | -10/Materials | Discovered new exit (range 16) 1214 | -10/Materials | Discovered new exit (range 10) 1236 | -10/Materials | Build established: Mutant 1424 | -10/Materials | Core integrity fell below 20% 1436 | -10/Materials | Destroyed by S-10 Pest with Light Assault Rifle Last Messages --------------- Destroyed Lgt. Ion Engine. Wheel destroyed. Destroyed Wheel. Grenade Launcher destroyed. Destroyed Grenade Launcher. Nuclear Reactor explodes. K-01 Serf destroyed. U-05 Engineer lays Concrete. The unstable cave ceiling collapses. U-05 Engineer lays Concrete. Beam Cannon destroyed. U-05 Engineer builds a Wall. Wheel destroyed. The unstable cave ceiling collapses. U-05 Engineer builds a Wall. K-01 Serf collects debris. Lgt. Ion Engine destroyed. K-01 Serf collects debris. U-05 Engineer lays Concrete. [Achievement: First Step to Greatness] Map ----- +----------------------------------------------------+ | | | | | | | | | ?????????????????????????????????????????????????? | | ?????????????????????????????????????????????????? | | ?????????????????????????????????????????????????? | | ?????????????????????????????????????????????????? | | ?????????????????????????????????????????????????? | | ??????????????????????###????????????????????????? | | ??????????????????? ? ????????????????????????? | | ?????????????????? ????????????????????????? | | ??????????????????? ##############??????????? | | ??????????????????????# ^ [^[ #??????????? | | ??????????????????????# ^ [!^ #??????????? | | ??????????????????????# #??????????? | | ??????????????# ??????#^ ^ ##?????????? | | ??????????????# ?????# """%""" T#?????????? | | ??????????????# ????# """"""" ##?????????? | | ?????????????## #??## """""" #??????????? | | ?????????????# ### """"" #######????? | | ?????????????# = """" #????? | | ?????????????# !% #????? | | ?????????????# wa ! ###### | | ?????????????# ### # | | ?????????????##??????## @ # | | ??????????????????????# # " | | ??????????????????????## u # " | | ??????????????????????# ss + " | | ??????????????????????# # " | | ????????????????????? # # " | | ???????????????????? " # # # ### # | | ????#???#???#?????? T # s# #/### # " | | ?#?#???#?#?#?????? " # ## # | | #??#?#####?#??#?? ?## ## # | | ####??#?????#?? """ ?# # ## ###### | | #?#??###??#?#?# """??#### # ### " ## ###### | | #?#???#?#######? ?""????######### T ## | | ###?##?###?#### ? ? #?#""|"!""# " ## | | ###########?#####+###???# "|"!" # ## = | | #########?###?# ##### ##+### ####### | | ##"""########## ## #? | | "##"T"#T######## > ! ### | | "# + | | "# ###### ##### ##+########## | | # ^ ############?#?######### #????# """ | | + ^ [*=""############# ?? ?? # #????? """ | | #^ ^ [ =Y"# #???? ? # !!] #??????""" | | ## " "=*""# " #??? ? # !]] #????????# | | # %"R"*=### T ### # !] ##??###### | +----------------------------------------------------+ Best States ------------- Heat Dissipation 25 Energy Generation 10 Energy Capacity 250 Matter Stores 300 Matter Capacity 300 Sight Range 16 Terrain Scan Range 16 Terrain Scan Density 60 Resistance: KI 20 Resistance: TH 20 Resistance: EX 20 Resistance: EM 20 Resistance: I 20 Resistance: S 20 Resistance: P 20 Evasion (%) 62 Offensive Hacking 10 Item Schematics ----------------- None Robot Schematics ------------------ None Fabricated ------------ Nothing Alien Tech Used ----------------- None Achievements -------------- Crack Shot First Step to Greatness One Hack Too Far Part-time Mechanic Challenges ------------ None Game ------ Seed HoverSegregatorMace Manual? 0 Play Time 00:46:25 Cumulative 1.5 hours Start 2021.11.28 @ 11:56:36 End 2021.11.28 @ 13:28:13 Sessions 3 Manual Loads 0 Difficulty Adventurer Special Mode None Game No. 1 Rogue 0 Adventurer 1 Explorer 0 Win Type - Total 0 Types 0/0/0/0/0/0/0/0/0 Lore% 0 Gallery% 1 Achievement% 1 Wizard Run 0 Options --------- ASCII 0 Keyboard 0 Movement Arrows Keybinds 0 Fullscreen 1 Font 18/X11Bold Map View 76x50 Tactical HUD 0 Map Filters NONE Filters NONE Steam 1 RUN: 1fd9b5a2-8216-4f76-b3ae-ef97001198a5